fUST/lending_fUST_20250422
["ID","MTS","AMOUNT","RATE_DAILY","PERIOD"]
[358636437,1745325054996,-512.99,0.00023287,2]
[358636438,1745325055005,-701.71,0.00023287,2]
[358636439,1745325055015,-729.16666667,0.00023287,7]
[358636440,1745325055024,-500.0,0.00023287,2]
[358636441,1745325055034,-500.0,0.00023287,2]
[358636442,1745325055045,-500.0,0.00023287,2]
[358636443,1745325055055,-1747.23,0.00023287,2]
[358636444,1745325055071,-500.0,0.00023287,2]
[358636445,1745325055082,-614.77,0.00023287,2]
[358636446,1745325055091,-500.0,0.00023287,2]
[358636447,1745325055103,-6005.19,0.00023287,2]
[358636448,1745325055112,-500.0,0.00023287,2]
[358636449,1745325055122,-278.19,0.00023287,2]
[358636450,1745325055132,-186.25,0.00023287,2]
[358636451,1745325055143,-679.36,0.00023287,2]
[358636452,1745325055154,-500.0,0.00023287,2]
[358636453,1745325055164,-3154.6,0.00023287,2]
[358636454,1745325055174,-214.9231,0.00023287,7]
[358636455,1745325055183,-1777.31,0.00023287,2]
[358636456,1745325055193,-500.0,0.00023287,2]
[358636457,1745325055204,-936.86,0.00023287,2]
[358636458,1745325055214,-757.75,0.00023287,2]
[358636459,1745325055225,-625.73,0.00023287,2]
[358636460,1745325055235,-541.14,0.00023287,2]
[358636461,1745325055245,-500.0,0.00023287,2]
[358636462,1745325055255,-500.0,0.00023287,2]
[358636463,1745325055265,-500.0,0.00023287,2]
[358636464,1745325055275,-959.9,0.00023287,2]
[358636465,1745325055286,-500.0,0.00023287,2]
[358636466,1745325055297,-1932.02,0.00023287,2]
[358636467,1745325055307,-433.65,0.00023287,2]
[358636468,1745325055316,-607.57,0.00023287,2]
[358636469,1745325055326,-723.74,0.00023287,2]
[358636470,1745325055336,-160.0,0.00023287,7]
[358636471,1745325055345,-764.74,0.00023287,2]
[358636472,1745325055355,-544.62,0.00023287,2]
[358636473,1745325055365,-500.0,0.00023287,2]
[358636474,1745325055375,-607.88,0.00023287,2]
[358636475,1745325055384,-4149.45,0.00023287,2]
[358636476,1745325055394,-500.0,0.00023287,2]
[358636477,1745325055405,-189.989,0.00023322,2]
[358636478,1745325055415,-166.655,0.00023322,2]
[358636479,1745325055425,-150.336,0.00023322,2]
[358636480,1745325055434,-500.0,0.0002343,2]
[358636481,1745325055444,-2245.0,0.00023436,2]
[358636482,1745325055454,-403.0,0.00023436,2]
[358636483,1745325055464,-151.0,0.00023436,7]
[358636484,1745325055474,-268.33081743,0.00023495,2]
[358636485,1745325055484,-265.40714463,0.00023495,2]
[358636486,1745325055495,-151.0,0.00023561,7]
[358636487,1745325055505,-741.75,0.00023561,2]
[358636488,1745325055514,-500.0,0.00023561,2]
[358636489,1745325055524,-635.66,0.00023561,2]
[358636490,1745325055537,-500.0,0.00023561,2]
[358636491,1745325055550,-500.0,0.00023561,2]
[358636492,1745325055560,-151.0,0.00023561,7]
[358636493,1745325055569,-500.0,0.00023561,2]
[358636494,1745325055579,-515.86,0.00023561,2]
[358636495,1745325055588,-500.0,0.00023561,2]
[358636496,1745325055597,-151.0,0.00023561,7]
[358636497,1745325055607,-500.0,0.00023561,2]
[358636498,1745325055616,-151.0,0.00023561,7]
[358636499,1745325055625,-505.87412306,0.00023561,2]
[358636500,1745325055635,-500.0,0.00023561,2]
[358636501,1745325055644,-439.54,0.00023561,4]
[358636502,1745325055654,-500.0,0.00023561,2]
[358636503,1745325055663,-659.9,0.00023561,2]
[358636504,1745325055673,-500.0,0.00023561,2]
[358636505,1745325055683,-151.0,0.00023561,7]
[358636506,1745325055693,-151.0,0.00023561,7]
[358636507,1745325055703,-608.54326349,0.00023561,2]
[358636508,1745325055714,-500.0,0.00023561,2]
[358636509,1745325055724,-500.0,0.00023561,2]
[358636510,1745325055734,-586.53,0.00023561,2]
[358636511,1745325055743,-742.33,0.00023561,2]
[358636512,1745325055753,-682.4,0.00023561,2]
[358636513,1745325055763,-500.0,0.00023561,2]
[358636514,1745325055772,-192.31,0.00023561,2]
[358636515,1745325055783,-151.0,0.00023561,7]
[358636516,1745325055793,-1067.65,0.00023561,2]
[358636517,1745325055802,-500.0,0.00023561,2]
[358636518,1745325055812,-619.4,0.00023561,2]
[358636519,1745325055822,-500.0,0.00023561,2]
[358636520,1745325055831,-385.68042639,0.00023561,2]
[358636521,1745325055841,-500.0,0.00023561,2]
[358636522,1745325055851,-500.0,0.00023561,2]
[358636523,1745325055861,-509.55677359,0.00023561,2]
[358636524,1745325055871,-500.0,0.00023561,2]
[358636525,1745325055881,-500.0,0.00023561,2]
[358636526,1745325055890,-573.99,0.00023561,2]
[358636527,1745325055900,-1519.62,0.00023561,2]
[358636528,1745325055910,-3238.33,0.00023561,2]
[358636529,1745325055919,-500.0,0.00023561,2]
[358636530,1745325055929,-500.0,0.00023561,2]
[358636531,1745325055938,-600.01,0.00023561,2]
[358636532,1745325055948,-500.0,0.00023561,2]
[358636533,1745325055958,-592.05,0.00023561,2]
[358636534,1745325055968,-500.0,0.00023561,2]
[358636535,1745325055978,-3110.89,0.00023561,2]
[358636536,1745325055987,-500.0,0.00023561,2]
[358636537,1745325055997,-500.0,0.00023561,2]
[358636538,1745325056007,-500.0,0.00023561,2]
[358636539,1745325056016,-500.0,0.00023561,2]
[358636540,1745325056025,-500.0,0.00023561,2]
[358636541,1745325056035,-710.02,0.00023561,2]
[358636542,1745325056046,-500.0,0.00023561,2]
[358636543,1745325056056,-230.019902,0.00023561,7]
[358636544,1745325056071,-10413.81,0.00023561,2]
[358636545,1745325056080,-623.22,0.00023561,2]
[358636546,1745325056091,-500.0,0.00023561,2]
[358636547,1745325056100,-500.0,0.00023561,2]
[358636548,1745325056110,-500.0,0.00023561,2]
[358636549,1745325056119,-500.0,0.00023561,2]
[358636550,1745325056129,-189.49,0.00023561,2]
[358636551,1745325056140,-512.99,0.00023561,2]
[358636552,1745325056151,-701.71,0.00023561,2]
[358636553,1745325056162,-500.0,0.00023561,2]
[358636554,1745325056172,-500.0,0.00023561,2]
[358636555,1745325056182,-500.0,0.00023561,2]
[358636556,1745325056192,-1747.23,0.00023561,2]
[358636557,1745325056202,-500.0,0.00023561,2]
[358636558,1745325056212,-614.77,0.00023561,2]
[358636559,1745325056223,-500.0,0.00023561,2]
[358636560,1745325056232,-3874.44965278,0.00023561,2]
[358636561,1745325056447,-609.93836514,0.00023013,2]
[358636562,1745325056458,-524.91274737,0.00023561,2]
[358636563,1745325056470,-1605.82759985,0.00023561,2]
[358636564,1745325056480,-500.0,0.00023561,2]
[358636565,1745325056490,-190.76360845,0.00023561,2]
[358636566,1745325056922,-559.622,0.00023436,2]
[358636567,1745325056932,-708.0,0.00023436,2]
[358636568,1745325056943,-488.59639155,0.00023561,2]
[358636569,1745325056952,-405.66297368,0.00023561,2]
[358636570,1745325056962,-3154.6,0.00023561,2]
[358636571,1745325056973,-1777.31,0.00023561,2]
[358636572,1745325056982,-111.96667397,0.00023561,2]
[358636599,1745325503675,-300.0,0.00021053,2]
[358636600,1745325503710,-132.27,0.00021053,2]
[358636602,1745325576585,-300.0,0.00021053,2]
[358636603,1745325576608,-758.0,0.00021054,2]
[358636608,1745326138131,230.85324364,0.00018954,2]
[358636650,1745326232675,-587.0,0.00020484,2]
[358636652,1745326232685,-1921.23760735,0.00020485,2]
[358636654,1745326232732,-10954.04350965,0.00020485,2]
[358636655,1745326232742,-740.4208137,0.00020607,2]
[358636656,1745326232753,-18468.4500933,0.00020696,2]
[358636657,1745326232762,-2783.37319951,0.00021087,2]
[358636658,1745326232772,-158.5,0.000217,2]
[358636660,1745326232782,-151.0,0.00021704,2]
[358636662,1745326232793,-364.34076371,0.00021716,2]
[358636664,1745326232802,-500.0,0.00021716,2]
[358636667,1745326232813,-500.0,0.00021716,2]
[358636668,1745326232823,-215.07989107,0.00021716,2]
[358636669,1745326232834,-500.0,0.00021716,2]
[358636670,1745326232844,-500.0,0.00021716,2]
[358636671,1745326232854,-500.0,0.00021716,2]
[358636672,1745326232864,-157.93232749,0.00021716,2]
[358636673,1745326232873,-601.47641455,0.00021716,2]
[358636674,1745326232883,-500.0,0.00021716,2]
[358636675,1745326232894,-500.74021237,0.00021716,2]
[358636676,1745326232905,-500.0,0.00021716,2]
[358636677,1745326232915,-500.0,0.00021716,2]
[358636678,1745326232924,-500.0,0.00021716,2]
[358636679,1745326232934,-500.0,0.00021716,2]
[358636680,1745326232944,-250.57003447,0.00021716,2]
[358636681,1745326232956,-500.0,0.00021716,2]
[358636682,1745326232966,-347.82913134,0.00021716,2]
[358636683,1745326232977,-500.0,0.00021716,2]
[358636684,1745326232989,-505.51137715,0.00021716,2]
[358636685,1745326232998,-116133.91921331,0.00021717,2]
[358636686,1745326233010,-16177.35057766,0.00021717,2]
[358636687,1745326233022,-10425.13081098,0.00021717,2]
[358636703,1745326238967,-1954.08438252,0.00021717,2]
[358636704,1745326238980,-225309.51501553,0.00021717,2]
[358636705,1745326238990,-535.79024622,0.00021826,2]
[358636706,1745326239000,-152.0,0.00021836,2]
[358636707,1745326239010,-500.0,0.00021917,2]
[358636708,1745326239020,-502.30571358,0.00021917,2]
[358636709,1745326239030,-501.51697049,0.00021917,2]
[358636710,1745326239040,-501.06957214,0.00021917,2]
[358636711,1745326239050,-500.0,0.00021917,2]
[358636712,1745326239060,-500.0,0.00021917,2]
[358636713,1745326239070,-501.65465623,0.00021917,2]
[358636714,1745326239080,-500.0,0.00021917,2]
[358636715,1745326239090,-504.54844696,0.00021917,2]
[358636716,1745326239100,-500.0,0.00021917,2]
[358636717,1745326239110,-500.0,0.00021917,2]
[358636718,1745326239120,-500.0,0.00021917,2]
[358636719,1745326239130,-629.66162781,0.00021917,2]
[358636720,1745326239139,-500.0,0.00021917,2]
[358636721,1745326239149,-500.0,0.00021917,2]
[358636722,1745326239160,-500.0,0.00021917,2]
[358636723,1745326239171,-501.93523203,0.00021917,2]
[358636724,1745326239180,-500.0,0.00021917,2]
[358636725,1745326239190,-516.09209659,0.00021917,2]
[358636726,1745326239200,-500.0,0.00021917,2]
[358636727,1745326239209,-500.0,0.00021917,2]
[358636728,1745326239219,-500.0,0.00021917,2]
[358636729,1745326239229,-500.0,0.00021917,2]
[358636730,1745326239239,-500.0,0.00021917,2]
[358636731,1745326239249,-502.58821979,0.00021917,2]
[358636732,1745326239258,-500.0,0.00021917,2]
[358636733,1745326239268,-506.65457999,0.00021917,2]
[358636734,1745326239278,-500.0,0.00021917,2]
[358636735,1745326239287,-500.0,0.00021917,2]
[358636736,1745326239296,-500.0,0.00021917,2]
[358636737,1745326239306,-501.88088184,0.00021917,2]
[358636738,1745326239316,-500.0,0.00021917,2]
[358636739,1745326239326,-500.0,0.00021917,2]
[358636740,1745326239336,-500.0,0.00021917,2]
[358636741,1745326239345,-500.0,0.00021917,2]
[358636742,1745326239355,-500.0,0.00021917,2]
[358636743,1745326239364,-500.0,0.00021917,2]
[358636744,1745326239375,-500.0,0.00021917,2]
[358636745,1745326239384,-500.0,0.00021917,2]
[358636746,1745326239395,-501.08013338,0.00021917,2]
[358636747,1745326239406,-500.0,0.00021917,2]
[358636748,1745326239416,-500.0,0.00021917,2]
[358636749,1745326239426,-500.9550273,0.00021917,2]
[358636750,1745326239438,-500.0,0.00021917,2]
[358636751,1745326239447,-500.0,0.00021917,2]
[358636752,1745326239457,-502.22130498,0.00021917,2]
[358636753,1745326239467,-500.0,0.00021917,2]
[358636754,1745326239478,-500.0,0.00021917,2]
[358636755,1745326239489,-500.0,0.00021917,2]
[358636756,1745326239499,-500.0,0.00021917,2]
[358636757,1745326239509,-500.0,0.00021917,2]
[358636758,1745326239519,-500.0,0.00021917,2]
[358636759,1745326239529,-500.0,0.00021917,2]
[358636760,1745326239539,-500.0,0.00021917,2]
[358636761,1745326239550,-500.0,0.00021917,2]
[358636762,1745326239560,-500.0,0.00021917,2]
[358636763,1745326239570,-500.0,0.00021917,2]
[358636764,1745326239580,-500.0,0.00021917,2]
[358636765,1745326239589,-500.0,0.00021917,2]
[358636766,1745326239599,-500.0,0.00021917,2]
[358636767,1745326239608,-500.0,0.00021917,2]
[358636768,1745326239618,-500.0,0.00021917,2]
[358636769,1745326239628,-500.0,0.00021917,2]
[358636770,1745326239637,-501.05278398,0.00021917,2]
[358636771,1745326239648,-372.76242901,0.00021917,2]
[358636772,1745326239657,-500.0,0.00021917,2]
[358636773,1745326239668,-503.47947882,0.00021917,2]
[358636774,1745326239678,-500.0,0.00021917,2]
[358636775,1745326239688,-500.0,0.00021917,2]
[358636776,1745326239698,-503.79091632,0.00021917,2]
[358636777,1745326239707,-500.0,0.00021917,2]
[358636778,1745326239717,-500.0,0.00021917,2]
[358636779,1745326239726,-500.0,0.00021917,2]
[358636780,1745326239736,-500.0,0.00021917,2]
[358636781,1745326239745,-500.0,0.00021917,2]
[358636782,1745326239755,-500.0,0.00021917,2]
[358636783,1745326239765,-549.37,0.00021917,2]
[358636784,1745326239775,-500.0,0.00021917,2]
[358636785,1745326239785,-503.02696017,0.00021917,2]
[358636786,1745326239795,-500.0,0.00021917,2]
[358636787,1745326239805,-502.36041253,0.00021917,2]
[358636788,1745326239814,-500.0,0.00021917,2]
[358636789,1745326239824,-500.0,0.00021917,2]
[358636790,1745326239834,-500.0,0.00021917,2]
[358636791,1745326239844,-500.0,0.00021917,2]
[358636792,1745326239853,-500.0,0.00021917,2]
[358636793,1745326239862,-500.0,0.00021917,2]
[358636794,1745326239872,-500.0,0.00021917,2]
[358636795,1745326239882,-503.07774411,0.00021917,2]
[358636796,1745326239892,-500.0,0.00021917,2]
[358636797,1745326239902,-500.0,0.00021917,2]
[358636798,1745326239911,-500.0,0.00021917,2]
[358636799,1745326239922,-500.0,0.00021917,2]
[358636800,1745326239931,-500.0,0.00021917,2]
[358636801,1745326239941,-500.0,0.00021917,2]
[358636802,1745326239951,-504.19409519,0.00021917,2]
[358636803,1745326239961,-500.0,0.00021917,2]
[358636804,1745326239971,-500.0,0.00021917,2]
[358636805,1745326239980,-500.0,0.00021917,2]
[358636806,1745326239990,-500.0,0.00021917,2]
[358636807,1745326240000,-501.14443384,0.00021917,2]
[358636808,1745326240009,-500.0,0.00021917,2]
[358636809,1745326240018,-500.0,0.00021917,2]
[358636810,1745326240028,-500.0,0.00021917,2]
[358636811,1745326240037,-500.0,0.00021917,2]
[358636812,1745326240047,-500.0,0.00021917,2]
[358636813,1745326240057,-500.0,0.00021917,2]
[358636814,1745326240066,-500.0,0.00021917,2]
[358636815,1745326240076,-500.0,0.00021917,2]
[358636816,1745326240086,-500.0,0.00021917,2]
[358636817,1745326240096,-500.0,0.00021917,2]
[358636818,1745326240105,-500.0,0.00021917,2]
[358636819,1745326240115,-500.0,0.00021917,2]
[358636820,1745326240126,-500.0,0.00021917,2]
[358636821,1745326240136,-501.43301874,0.00021917,2]
[358636823,1745326240146,-500.0,0.00021917,2]
[358636825,1745326240156,-260.47010886,0.00021917,2]
[358636826,1745326240166,-500.0,0.00021917,2]
[358636827,1745326240175,-500.0,0.00021917,2]
[358636828,1745326240185,-500.0,0.00021917,2]
[358636829,1745326240194,-500.0,0.00021917,2]
[358636830,1745326240204,-500.0,0.00021917,2]
[358636831,1745326240214,-503.84499358,0.00021917,2]
[358636832,1745326240223,-500.0,0.00021917,2]
[358636833,1745326240234,-424.38447612,0.00021917,2]
[358636834,1745326240244,-500.0,0.00021917,2]
[358636835,1745326240254,-500.0,0.00021917,2]
[358636836,1745326240264,-500.0,0.00021917,2]
[358636837,1745326240274,-500.0,0.00021917,2]
[358636838,1745326240284,-500.0,0.00021917,2]
[358636839,1745326240294,-501.6392945,0.00021917,2]
[358636840,1745326240304,-500.0,0.00021917,2]
[358636841,1745326240314,-500.0,0.00021917,2]
[358636842,1745326240323,-503.14370427,0.00021917,2]
[358636843,1745326240333,-500.89204275,0.00021917,2]
[358636844,1745326240343,-502.40067337,0.00021917,2]
[358636845,1745326240354,-504.62886213,0.00021917,2]
[358636847,1745326240363,-500.0,0.00021917,2]
[358636848,1745326240373,-500.0,0.00021917,2]
[358636849,1745326240383,-500.0,0.00021917,2]
[358636850,1745326240397,-500.0,0.00021917,2]
[358636851,1745326240408,-500.0,0.00021917,2]
[358636852,1745326240417,-501.15513965,0.00021917,2]
[358636853,1745326240427,-586.53,0.00021917,2]
[358636854,1745326240437,-500.0,0.00021917,2]
[358636855,1745326240447,-500.0,0.00021917,2]
[358636856,1745326240457,-500.0,0.00021917,2]
[358636857,1745326240611,-742.33,0.00021917,2]
[358636858,1745326240624,-500.0,0.00021917,2]
[358636859,1745326240634,-500.0,0.00021917,2]
[358636860,1745326240645,-500.47103987,0.00021917,2]
[358636861,1745326240655,-500.0,0.00021917,2]
[358636862,1745326240666,-500.0,0.00021917,2]
[358636863,1745326240676,-500.0,0.00021917,2]
[358636864,1745326240686,-500.0,0.00021917,2]
[358636865,1745326240696,-500.0,0.00021917,2]
[358636866,1745326240706,-500.0,0.00021917,2]
[358636867,1745326240717,-506.80313246,0.00021917,2]
[358636868,1745326240726,-500.0,0.00021917,2]
[358636869,1745326240737,-495.89962436,0.00021917,2]
[358636870,1745326240747,-500.0,0.00021917,2]
[358636871,1745326240756,-500.0,0.00021917,2]
[358636872,1745326240766,-682.4,0.00021917,2]
[358636873,1745326240775,-500.0,0.00021917,2]
[358636874,1745326240785,-500.0,0.00021917,2]
[358636875,1745326240794,-500.0,0.00021917,2]
[358636876,1745326240804,-500.0,0.00021917,2]
[358636877,1745326240814,-500.0,0.00021917,2]
[358636878,1745326240824,-500.0,0.00021917,2]
[358636879,1745326240834,-501.62931202,0.00021917,2]
[358636880,1745326240843,-500.0,0.00021917,2]
[358636882,1745326240854,-500.0,0.00021917,2]
[358636884,1745326240864,-500.0,0.00021917,2]
[358636885,1745326240873,-500.0,0.00021917,2]
[358636886,1745326240883,-513.93238625,0.00021917,2]
[358636887,1745326240893,-500.0,0.00021917,2]
[358636888,1745326240904,-500.0,0.00021917,2]
[358636889,1745326240914,-500.0,0.00021917,2]
[358636890,1745326240924,-500.0,0.00021917,2]
[358636891,1745326240934,-500.0,0.00021917,2]
[358636892,1745326240943,-500.0,0.00021917,2]
[358636894,1745326240954,-510.94224512,0.00021917,2]
[358636895,1745326240963,-544.52755976,0.00021917,2]
[358636896,1745326240973,-757.75,0.00021917,2]
[358636897,1745326240983,-500.54584082,0.00021917,2]
[358636898,1745326240993,-500.0,0.00021917,2]
[358636899,1745326241002,-500.0,0.00021917,2]
[358636900,1745326241012,-611.20503812,0.00021917,2]
[358636901,1745326241022,-500.0,0.00021917,2]
[358636902,1745326241033,-510.26611094,0.00021917,2]
[358636903,1745326241043,-500.0,0.00021917,2]
[358636904,1745326241053,-539.06370772,0.00021917,2]
[358636905,1745326241062,-500.0,0.00021917,2]
[358636906,1745326241072,-500.0,0.00021917,2]
[358636907,1745326241082,-500.0,0.00021917,2]
[358636908,1745326241092,-500.0,0.00021917,2]
[358636909,1745326241102,-500.0,0.00021917,2]
[358636910,1745326241112,-500.0,0.00021917,2]
[358636911,1745326241122,-500.0,0.00021917,2]
[358636912,1745326241132,-500.0,0.00021917,2]
[358636913,1745326241142,-500.0,0.00021917,2]
[358636914,1745326241152,-500.0,0.00021917,2]
[358636915,1745326241163,-500.0,0.00021917,2]
[358636916,1745326241174,-500.0,0.00021917,2]
[358636917,1745326241184,-500.85644021,0.00021917,2]
[358636918,1745326241193,-1000.0,0.00021917,2]
[358636919,1745326241205,-500.0,0.00021917,2]
[358636920,1745326241214,-507.26804273,0.00021917,2]
[358636921,1745326241225,-500.80780105,0.00021917,2]
[358636922,1745326241235,-1128.02,0.00021917,2]
[358636923,1745326241244,-500.0,0.00021917,2]
[358636924,1745326241254,-500.0,0.00021917,2]
[358636925,1745326241266,-500.0,0.00021917,2]
[358636926,1745326241277,-500.0,0.00021917,2]
[358636927,1745326241287,-500.0,0.00021917,2]
[358636928,1745326241300,-500.0,0.00021917,2]
[358636929,1745326241310,-500.0,0.00021917,2]
[358636930,1745326241320,-592.95871272,0.00021917,2]
[358636931,1745326241330,-500.73143921,0.00021917,2]
[358636932,1745326241339,-500.0,0.00021917,2]
[358636933,1745326241349,-500.0,0.00021917,2]
[358636934,1745326241359,-500.0,0.00021917,2]
[358636935,1745326241368,-500.0,0.00021917,2]
[358636936,1745326241378,-500.0,0.00021917,2]
[358636937,1745326241387,-501.59604915,0.00021917,2]
[358636938,1745326241399,-500.0,0.00021917,2]
[358636939,1745326241410,-500.0,0.00021917,2]
[358636940,1745326241420,-500.0,0.00021917,2]
[358636941,1745326241431,-500.0,0.00021917,2]
[358636942,1745326241441,-500.0,0.00021917,2]
[358636943,1745326241451,-500.0,0.00021917,2]
[358636944,1745326241461,-500.0,0.00021917,2]
[358636945,1745326241471,-500.0,0.00021917,2]
[358636946,1745326241482,-500.97715698,0.00021917,2]
[358636947,1745326241492,-619.4,0.00021917,2]
[358636948,1745326241501,-500.0,0.00021917,2]
[358636949,1745326241511,-500.0,0.00021917,2]
[358636950,1745326241520,-500.0,0.00021917,2]
[358636951,1745326241530,-503.3984315,0.00021917,2]
[358636952,1745326241540,-500.0,0.00021917,2]
[358636953,1745326241550,-500.98265572,0.00021917,2]
[358636954,1745326241559,-601.61337324,0.00021917,2]
[358636955,1745326241571,-500.0,0.00021917,2]
[358636956,1745326241580,-500.0,0.00021917,2]
[358636957,1745326241590,-500.0,0.00021917,2]
[358636958,1745326241600,-500.0,0.00021917,2]
[358636959,1745326241610,-500.50826648,0.00021917,2]
[358636960,1745326241620,-500.0,0.00021917,2]
[358636961,1745326241629,-501.60188421,0.00021917,2]
[358636962,1745326241639,-500.0,0.00021917,2]
[358636963,1745326241649,-500.0,0.00021917,2]
[358636964,1745326241659,-500.0,0.00021917,2]
[358636965,1745326241668,-500.0,0.00021917,2]
[358636966,1745326241678,-500.0,0.00021917,2]
[358636967,1745326241688,-500.0,0.00021917,2]
[358636968,1745326241698,-500.0,0.00021917,2]
[358636969,1745326241707,-500.0,0.00021917,2]
[358636970,1745326241717,-500.0,0.00021917,2]
[358636971,1745326241729,-500.0,0.00021917,2]
[358636972,1745326241738,-500.0,0.00021917,2]
[358636973,1745326241748,-500.0,0.00021917,2]
[358636974,1745326241758,-573.99,0.00021917,2]
[358636975,1745326241767,-500.0,0.00021917,2]
[358636976,1745326241777,-500.0,0.00021917,2]
[358636977,1745326241786,-500.0,0.00021917,2]
[358636978,1745326241796,-609.17,0.00021917,2]
[358636979,1745326241805,-500.0,0.00021917,2]
[358636980,1745326241815,-500.0,0.00021917,2]
[358636981,1745326241825,-546.57177911,0.00021917,2]
[358636982,1745326241835,-500.0,0.00021917,2]
[358636983,1745326241844,-500.0,0.00021917,2]
[358636984,1745326241854,-634.74074739,0.00021917,2]
[358636985,1745326241863,-500.0,0.00021917,2]
[358636986,1745326241873,-500.0,0.00021917,2]
[358636987,1745326241882,-502.75279379,0.00021917,2]
[358636988,1745326241892,-1582.69,0.00021917,2]
[358636989,1745326241902,-500.38574003,0.00021917,2]
[358636990,1745326241912,-504.12366263,0.00021917,2]
[358636991,1745326241922,-500.0,0.00021917,2]
[358636992,1745326241931,-502.85630333,0.00021917,2]
[358636993,1745326241941,-500.0,0.00021917,2]
[358636994,1745326241951,-500.0,0.00021917,2]
[358636995,1745326241961,-500.65093928,0.00021917,2]
[358636996,1745326241970,-500.0,0.00021917,2]
[358636997,1745326241980,-500.0,0.00021917,2]
[358636998,1745326241989,-541.53295048,0.00021917,2]
[358636999,1745326241998,-500.0,0.00021917,2]
[358637000,1745326242008,-500.0,0.00021917,2]
[358637001,1745326242018,-500.0,0.00021917,2]
[358637002,1745326242027,-500.0,0.00021917,2]
[358637003,1745326242037,-500.0,0.00021917,2]
[358637004,1745326242046,-500.0,0.00021917,2]
[358637005,1745326242056,-633.84795498,0.00021917,2]
[358637006,1745326242066,-500.0,0.00021917,2]
[358637007,1745326242075,-500.0,0.00021917,2]
[358637008,1745326242084,-504.28978164,0.00021917,2]
[358637009,1745326242095,-500.0,0.00021917,2]
[358637010,1745326242105,-500.0,0.00021917,2]
[358637011,1745326242115,-500.0,0.00021917,2]
[358637012,1745326242124,-500.0,0.00021917,2]
[358637013,1745326242134,-500.0,0.00021917,2]
[358637014,1745326242144,-500.0,0.00021917,2]
[358637015,1745326242154,-500.0,0.00021917,2]
[358637016,1745326242166,-468.13857408,0.00021917,2]
[358637017,1745326242177,-500.0,0.00021917,2]
[358637018,1745326242188,-592.05,0.00021917,2]
[358637019,1745326242199,-500.0,0.00021917,2]
[358637020,1745326242208,-3238.33,0.00021917,2]
[358637021,1745326242217,-500.0,0.00021917,2]
[358637022,1745326242227,-500.0,0.00021917,2]
[358637023,1745326242236,-500.14583226,0.00021917,2]
[358637024,1745326242246,-501.53708838,0.00021917,2]
[358637025,1745326242256,-504.73077783,0.00021917,2]
[358637026,1745326242265,-500.0,0.00021917,2]
[358637027,1745326242275,-501.44029348,0.00021917,2]
[358637028,1745326242284,-500.0,0.00021917,2]
[358637029,1745326242294,-500.0,0.00021917,2]
[358637030,1745326242303,-500.0,0.00021917,2]
[358637031,1745326242313,-500.0,0.00021917,2]
[358637032,1745326242323,-500.0,0.00021917,2]
[358637033,1745326242332,-500.0,0.00021917,2]
[358637034,1745326242342,-500.0,0.00021917,2]
[358637035,1745326242352,-500.0,0.00021917,2]
[358637036,1745326242361,-500.0,0.00021917,2]